bitfinex/quotes_BTCUSD_20250320
["timestamp","ask_amount","ask_price","bid_price","bid_amount"]
[1742484743594,0.00046347,85629.0,85628.0,1.88274799]
[1742484743794,0.00046347,85629.0,85628.0,1.99946511]
[1742484743995,0.00046347,85629.0,85628.0,2.01014311]
[1742484744207,0.00046347,85629.0,85628.0,2.02968396]
[1742484744418,0.00046347,85629.0,85628.0,2.07698396]
[1742484744754,0.00046347,85629.0,85628.0,2.07598396]
[1742484745029,0.00146347,85629.0,85628.0,2.22518396]
[1742484745359,0.000339,85646.0,85628.0,2.20198396]
[1742484745561,0.000339,85646.0,85645.0,0.38331388]
[1742484745762,0.000339,85646.0,85645.0,1.244971]
[1742484746947,0.000339,85646.0,85645.0,0.98119215]
[1742484747366,0.000339,85646.0,85645.0,0.99286815]
[1742484747792,0.000339,85646.0,85645.0,0.98119215]
[1742484747997,0.001339,85646.0,85645.0,0.98219215]
[1742484748558,0.001339,85646.0,85645.0,1.012409]
[1742484748941,0.002339,85646.0,85645.0,1.012409]
[1742484749326,0.002339,85646.0,85645.0,0.98219215]
[1742484749525,0.001339,85646.0,85645.0,0.98219215]
[1742484749888,0.001339,85646.0,85645.0,0.98119215]
[1742484750069,0.001339,85646.0,85645.0,1.00482192]
[1742484750278,0.002339,85646.0,85645.0,0.73840192]
[1742484750483,0.002339,85646.0,85645.0,0.87756192]
[1742484750691,0.002339,85646.0,85645.0,0.8443248]
[1742484750900,0.003339,85646.0,85645.0,0.8443248]
[1742484751509,0.000339,85646.0,85645.0,0.8413248]
[1742484751727,0.001339,85646.0,85645.0,2.3413248]
[1742484752146,0.002339,85646.0,85645.0,2.3443248]
[1742484752386,0.001339,85646.0,85645.0,2.3443248]
[1742484752592,0.002339,85646.0,85645.0,2.3443248]
[1742484753342,0.001339,85646.0,85645.0,2.3413248]
[1742484753675,0.002339,85646.0,85645.0,2.3433248]
[1742484754472,0.002339,85646.0,85645.0,2.2010848]
[1742484754639,0.302339,85646.0,85645.0,2.3433248]
[1742484755045,0.302339,85646.0,85645.0,2.3432448]
[1742484755652,0.002339,85646.0,85645.0,2.3432448]
[1742484756729,0.548533,85646.0,85645.0,2.05788]
[1742484756960,0.548533,85646.0,85645.0,0.002]
[1742484757162,0.546223,85636.0,85635.0,0.14228]
[1742484758264,0.3,85636.0,85635.0,0.14228]
[1742484758467,0.31831323,85636.0,85635.0,0.26185503]
[1742484758639,0.3,85636.0,85635.0,0.26185503]
[1742484758863,0.000339,85646.0,85635.0,0.26185503]
[1742484759017,0.000339,85646.0,85636.0,0.11957503]
[1742484759342,0.233543,85637.0,85636.0,0.11957503]
[1742484759641,0.011678,85628.0,85624.0,0.55576]
[1742484759841,0.3,85625.0,85624.0,0.55576]
[1742484760161,0.3,85625.0,85624.0,0.81773503]
[1742484760291,0.31700084,85625.0,85624.0,0.81773503]
[1742484761121,0.31700084,85625.0,85624.0,0.84069495]
[1742484761545,0.31700084,85625.0,85624.0,2.34069495]
[1742484761759,0.31800084,85625.0,85624.0,2.34169495]
[1742484761958,0.31800084,85625.0,85624.0,2.34161495]
[1742484762160,0.31700084,85625.0,85624.0,2.19829495]
[1742484762409,0.31700084,85625.0,85624.0,2.34057495]
[1742484762557,0.31700084,85625.0,85624.0,2.34357495]
[1742484762558,0.31800084,85625.0,85624.0,2.34357495]
[1742484763261,0.31800084,85625.0,85624.0,2.20129495]
[1742484763463,0.001339,85646.0,85624.0,2.20129495]
[1742484763660,0.001339,85646.0,85631.0,0.11957503]
[1742484763661,0.25598386,85640.0,85631.0,0.11957503]
[1742484764089,0.001,85641.0,85639.0,1.5]
[1742484764244,0.001,85641.0,85640.0,0.26181503]
[1742484764446,0.001,85641.0,85639.0,1.5]
[1742484764447,0.301,85640.0,85639.0,1.5]
[1742484764687,0.624911,85640.0,85639.0,1.64224]
[1742484764882,0.012677,85632.0,85631.0,0.0218219]
[1742484765104,0.012677,85632.0,85631.0,0.1640219]
[1742484765105,0.301,85632.0,85631.0,0.1640219]
[1742484765307,0.3,85632.0,85631.0,0.28359693]
[1742484765523,0.3,85632.0,85631.0,0.003]
[1742484765876,0.3,85632.0,85631.0,0.26173503]
[1742484766204,0.3,85632.0,85631.0,0.26373503]
[1742484766409,0.3,85632.0,85631.0,0.26173503]
[1742484766854,0.3,85632.0,85631.0,0.26473503]
[1742484767028,0.3,85632.0,85631.0,0.12257503]
[1742484767246,0.546234,85632.0,85631.0,0.14516]
[1742484767445,0.301,85632.0,85631.0,0.14516]
[1742484767650,0.301,85632.0,85631.0,0.14916]
[1742484767965,0.3,85632.0,85631.0,0.12657503]
[1742484768204,0.3,85632.0,85631.0,0.26173503]
[1742484768535,0.3,85632.0,85631.0,0.26473503]
[1742484769118,0.3,85632.0,85631.0,0.26573503]
[1742484769323,0.3,85632.0,85631.0,0.26773503]
[1742484769498,0.3,85632.0,85631.0,0.26373503]
[1742484769637,0.3,85632.0,85631.0,0.26173503]
[1742484769839,0.3,85632.0,85631.0,0.26473503]
[1742484770912,0.3,85632.0,85631.0,0.12257503]
[1742484771112,0.3,85632.0,85631.0,0.27053503]
[1742484771532,0.3,85632.0,85631.0,0.26453503]
[1742484771709,0.3,85632.0,85631.0,1.76453503]
[1742484771876,0.3,85632.0,85631.0,1.76753503]
[1742484772080,0.3,85632.0,85631.0,1.77070453]
[1742484772327,0.3,85632.0,85631.0,1.76470453]
[1742484772534,0.017174,85641.0,85631.0,1.76170453]
[1742484772733,0.000339,85646.0,85633.0,0.11957503]
[1742484773352,0.000339,85646.0,85634.0,1.50233502]
[1742484773497,0.01766783,85646.0,85635.0,0.11957503]
[1742484773705,0.000339,85646.0,85635.0,0.11957503]
[1742484773899,0.000339,85646.0,85636.0,0.12191007]
[1742484774162,0.000339,85646.0,85640.0,0.11957503]
[1742484774458,0.01745763,85646.0,85640.0,0.11957503]
[1742484774861,0.000339,85646.0,85640.0,0.11957503]
[1742484775558,0.000339,85646.0,85640.0,0.12557503]
[1742484775755,0.000339,85646.0,85640.0,0.12857503]
[1742484775962,0.000339,85646.0,85640.0,0.12257503]
[1742484776310,0.001,85643.0,85640.0,0.12257503]
[1742484776507,0.546209,85641.0,85640.0,0.003]
[1742484777202,0.56452071,85641.0,85640.0,0.003]
[1742484777973,0.56452071,85641.0,85640.0,0.008]
[1742484778495,0.56452071,85641.0,85640.0,0.003]
[1742484778696,0.546214,85639.0,85638.0,0.1418]
[1742484778846,0.01931171,85641.0,85638.0,0.14184]
[1742484779046,0.001,85639.0,85638.0,0.14184]
[1742484779278,0.234538,85639.0,85638.0,0.26141503]
[1742484779476,0.301,85639.0,85638.0,0.26141503]
[1742484779697,0.01831171,85641.0,85638.0,0.26141503]
[1742484779904,0.01831171,85641.0,85639.0,0.11957503]
[1742484780242,0.01831171,85641.0,85639.0,0.12191024]
[1742484780445,0.01631509,85646.0,85639.0,0.11957503]
[1742484780844,0.32799009,85646.0,85639.0,0.11957503]
[1742484781041,0.546211,85640.0,85639.0,0.11957503]
[1742484781239,0.301,85640.0,85639.0,0.11957503]
[1742484781443,0.546211,85640.0,85639.0,0.26145503]
[1742484781644,0.546211,85640.0,85639.0,1.76145503]
[1742484782052,0.546211,85640.0,85639.0,1.76245503]
[1742484782253,0.546211,85640.0,85639.0,1.76145503]
[1742484782700,0.546211,85640.0,85639.0,1.76445503]
[1742484782937,0.301,85640.0,85639.0,1.76445503]
[1742484783138,0.3,85640.0,85639.0,1.76945503]
[1742484784081,0.533535,85640.0,85639.0,1.76945503]
[1742484784280,0.3,85640.0,85639.0,1.76945503]
[1742484784910,0.545211,85640.0,85639.0,1.76945503]
[1742484785233,0.300339,85640.0,85639.0,1.76945503]
[1742484785632,0.534874,85640.0,85639.0,1.508]
[1742484785833,0.54655,85640.0,85639.0,0.008]
[1742484786214,0.31865107,85640.0,85639.0,0.008]
[1742484786412,0.55318607,85640.0,85639.0,0.12757503]
[1742484786640,0.31965107,85640.0,85639.0,0.12757503]
[1742484787013,0.31865107,85640.0,85639.0,0.12757503]
[1742484787280,0.31865107,85640.0,85639.0,0.16402081]
[1742484787281,0.000339,85640.0,85639.0,0.16402081]
[1742484787694,0.000339,85640.0,85639.0,0.16635573]
[1742484788123,0.000339,85640.0,85639.0,0.16402081]
[1742484788571,0.000339,85640.0,85639.0,0.16102081]
[1742484788780,0.000339,85640.0,85639.0,0.16402081]
[1742484789159,0.000339,85640.0,85639.0,0.16135573]
[1742484789563,0.000339,85640.0,85639.0,0.16735573]
[1742484789945,0.000339,85640.0,85639.0,0.16502081]
[1742484790504,0.000339,85640.0,85639.0,0.39855881]
[1742484790899,0.000339,85640.0,85639.0,0.16502081]
[1742484791103,0.233468,85665.0,85639.0,0.16502081]
[1742484791104,0.0826,85679.0,85640.0,0.0815]
[1742484791310,0.0013394,85680.0,85663.0,0.11957503]
[1742484791674,0.00041659,85680.0,85679.0,1.61957503]
[1742484792062,0.011672,85668.0,85661.0,0.035073]
[1742484792310,0.001,85664.0,85660.0,0.233]
[1742484792507,0.3,85668.0,85660.0,0.233]
[1742484792645,0.001,85665.0,85661.0,0.11957503]
[1742484793865,0.001,85665.0,85663.0,0.02327884]
[1742484794072,0.001,85665.0,85664.0,0.11957503]
[1742484794700,0.001,85665.0,85664.0,0.26201503]
[1742484794919,0.001,85665.0,85663.0,0.02327884]
[1742484794920,0.001,85664.0,85663.0,0.02327884]
[1742484795128,0.001,85664.0,85661.0,0.006]
[1742484795129,0.546148,85662.0,85661.0,0.006]
[1742484795342,0.312673,85661.0,85660.0,0.233]
[1742484795543,2.972683,85661.0,85660.0,0.19200002]
[1742484795755,2.99565696,85661.0,85660.0,0.19200002]
[1742484796000,2.69395196,85661.0,85660.0,0.18800002]
[1742484796207,2.50564296,85661.0,85660.0,0.18800002]
[1742484796410,0.50978196,85661.0,85660.0,0.18800002]
[1742484796611,0.31930896,85661.0,85660.0,0.18800002]
[1742484796943,0.33098196,85661.0,85660.0,0.18900002]
[1742484797146,0.68176296,85661.0,85660.0,0.18900002]
[1742484797420,0.43496396,85661.0,85660.0,0.18800002]
[1742484797649,0.33132096,85661.0,85660.0,0.18800002]
[1742484797783,0.31964796,85661.0,85660.0,0.30757505]
[1742484797979,0.32064796,85661.0,85660.0,0.30757505]
[1742484798325,0.31964796,85661.0,85660.0,0.30757505]
[1742484798686,0.01864796,85661.0,85660.0,0.30757505]
[1742484798890,0.01964796,85661.0,85660.0,0.30857505]
[1742484799088,0.01964796,85661.0,85660.0,0.18900002]
[1742484799089,0.03132096,85661.0,85660.0,0.18900002]
[1742484799302,0.03132096,85661.0,85660.0,0.16133271]
[1742484799708,0.82332996,85661.0,85660.0,0.16433271]
[1742484799910,0.63049396,85661.0,85660.0,0.16433271]
[1742484800134,0.44259396,85661.0,85660.0,0.16133271]
[1742484800508,0.44259396,85661.0,85660.0,0.13742271]
[1742484800707,0.424285,85661.0,85660.0,0.09052271]
[1742484800937,0.832885,85661.0,85660.0,0.08952271]
[1742484801181,0.832885,85661.0,85631.0,0.0001695]
[1742484801182,0.54522,85637.0,85631.0,0.0001695]
[1742484801305,0.001,85630.0,85629.0,0.65923494]
[1742484801667,0.001,85630.0,85629.0,0.67416453]
[1742484801869,0.001,85630.0,85629.0,2.31664453]
[1742484802273,0.001,85630.0,85629.0,2.34041828]
[1742484802419,0.001,85630.0,85629.0,2.34053511]
[1742484802623,0.301,85636.0,85629.0,2.34553511]
[1742484802821,0.3,85636.0,85630.0,0.11957503]
[1742484803440,0.01589171,85636.0,85631.0,0.00233535]
[1742484803827,0.001,85643.0,85632.0,0.11957503]
[1742484804036,0.001,85643.0,85639.0,1.5]
[1742484804241,0.01736751,85643.0,85640.0,0.11957503]
[1742484804448,0.301,85642.0,85640.0,0.11957503]
[1742484805421,0.001,85642.0,85640.0,0.11957503]
[1742484805821,0.301,85642.0,85640.0,0.12157503]
[1742484805988,0.534531,85642.0,85640.0,0.12157503]
[1742484806191,0.301,85642.0,85640.0,0.12157503]
[1742484806608,0.234533,85641.0,85640.0,0.12157503]
[1742484806870,0.001,85641.0,85640.0,0.12557503]
[1742484807187,0.016577,85643.0,85640.0,0.12557503]
[1742484807387,0.001,85643.0,85640.0,0.12157503]
[1742484807646,0.3,85646.0,85641.0,0.14224]
[1742484807846,0.001,85643.0,85642.0,0.11957503]
[1742484808095,0.31736914,85646.0,85642.0,0.11957503]
[1742484808307,0.01736914,85646.0,85642.0,0.11957503]
[1742484809426,0.011676,85643.0,85642.0,0.11957503]
[1742484809680,0.546209,85641.0,85640.0,0.0041694]
[1742484810419,0.546209,85641.0,85640.0,0.0001694]
[1742484811869,0.744277,85641.0,85640.0,0.0001694]
[1742484812060,0.245297,85610.0,85609.0,0.55584]
[1742484812244,0.3,85610.0,85609.0,0.81741503]
[1742484812464,0.3,85610.0,85609.0,2.31741503]
[1742484812683,0.301,85610.0,85609.0,2.17541503]
[1742484812836,0.546297,85610.0,85609.0,0.69901961]
[1742484813244,0.534617,85610.0,85609.0,0.69901961]
[1742484813440,0.546297,85610.0,85609.0,0.69901961]
[1742484813649,0.546297,85610.0,85609.0,0.58444458]
[1742484814051,0.546297,85610.0,85609.0,0.57944458]
[1742484814228,0.546301,85609.0,85608.0,0.00029397]
[1742484814437,1.445645,85609.0,85608.0,0.00029397]
[1742484814969,1.71868292,85609.0,85608.0,9.7e-07]
[1742484815209,0.97321892,85609.0,85608.0,9.7e-07]
[1742484816199,0.97321892,85609.0,85589.0,0.55584]
[1742484816200,0.001,85572.0,85571.0,0.55592]
[1742484816385,0.001,85577.0,85571.0,0.81733503]
[1742484816558,0.001,85579.0,85572.0,0.11957503]
[1742484816778,0.001,85583.0,85573.0,0.0023369]
[1742484816989,0.001,85580.0,85574.0,0.11957503]
[1742484817509,0.0174495,85580.0,85575.0,0.14184]
[1742484817781,0.00012475,85580.0,85576.0,0.11957503]
[1742484817994,0.01611872,85580.0,85577.0,0.00233679]
[1742484818201,0.245387,85579.0,85578.0,0.11957503]
[1742484818423,0.001,85572.0,85571.0,0.58201922]
[1742484818601,0.001,85572.0,85571.0,0.84347425]
[1742484818810,0.001,85572.0,85571.0,0.84047425]
[1742484819713,0.012686,85572.0,85571.0,0.84947425]
[1742484819914,0.012686,85572.0,85571.0,0.70759425]
[1742484820055,0.012686,85572.0,85571.0,0.5650895]
[1742484820255,0.012686,85572.0,85571.0,0.7069695]
[1742484821086,0.25204236,85574.0,85571.0,0.82654453]
[1742484821087,0.01832536,85574.0,85571.0,0.82654453]
[1742484821288,0.001,85579.0,85572.0,0.11957503]
[1742484821688,0.001,85579.0,85578.0,1.5]
[1742484821892,0.001,85579.0,85578.0,1.61957503]
[1742484822092,0.31611872,85580.0,85578.0,1.61957503]
[1742484822093,0.01611872,85580.0,85578.0,1.61957503]
[1742484822292,0.01611872,85580.0,85579.0,0.11957503]
[1742484822725,0.01611872,85580.0,85579.0,1.61957503]
[1742484822925,0.00012475,85580.0,85579.0,1.61957503]
[1742484823383,0.01168,85613.0,85579.0,1.61957503]
[1742484823384,0.011679,85618.0,85585.0,0.0803]
[1742484823524,0.001,85603.0,85590.0,0.35324503]
[1742484823729,0.001,85608.0,85595.0,0.11957503]
[1742484823936,0.001,85608.0,85604.0,1.5]
[1742484824252,0.001,85608.0,85605.0,0.26149503]
[1742484824253,0.01747175,85608.0,85605.0,0.26149503]
[1742484824415,0.001,85608.0,85605.0,0.26149503]
[1742484825464,0.01629461,85608.0,85605.0,0.26149503]
[1742484825710,0.01831833,85611.0,85607.0,0.11957503]
[1742484825920,0.000125,85613.0,85607.0,0.11957503]
[1742484826353,0.001,85612.0,85607.0,0.14282451]
[1742484826757,0.001,85608.0,85607.0,0.14282451]
[1742484826982,0.001,85608.0,85607.0,0.14582451]
[1742484827210,0.001,85608.0,85607.0,0.15082451]
[1742484827656,0.001,85608.0,85607.0,0.14582451]
[1742484828282,0.001,85608.0,85607.0,0.14282451]
[1742484828499,0.01639657,85613.0,85607.0,0.14482451]
[1742484828715,0.01639657,85613.0,85607.0,0.14716055]
[1742484828938,0.01639657,85613.0,85609.0,0.11957503]
[1742484829756,0.001,85609.0,85608.0,0.55612]
[1742484829971,0.546301,85609.0,85608.0,0.55612]
[1742484831089,0.546304,85608.0,85607.0,0.002]
[1742484831294,0.001,85591.0,85590.0,0.14212]
[1742484831523,0.001,85591.0,85590.0,0.26193503]
[1742484832161,0.534669,85591.0,85590.0,0.26193503]
[1742484832380,0.301,85591.0,85590.0,0.26193503]
[1742484832560,0.301,85591.0,85590.0,0.14236]
[1742484832827,0.301,85591.0,85590.0,0.26489503]
[1742484832828,0.546352,85591.0,85590.0,0.26489503]
[1742484833231,0.301,85591.0,85590.0,0.29315387]
[1742484833637,0.3,85591.0,85590.0,0.15083387]
[1742484833846,0.3,85591.0,85590.0,0.29299387]
[1742484834023,0.301,85591.0,85590.0,0.15083387]
[1742484834239,0.534669,85591.0,85590.0,0.29299387]
[1742484834441,0.534669,85591.0,85590.0,1.53125884]
[1742484834442,0.546352,85591.0,85590.0,1.53125884]
[1742484834643,0.546352,85591.0,85590.0,0.03125884]
[1742484835440,1.736819,85591.0,85590.0,0.005]
[1742484835645,1.642429,85591.0,85590.0,0.005]
[1742484836460,0.54538,85581.0,85580.0,0.0001696]
[1742484836631,0.54638,85581.0,85580.0,0.0001696]
[1742484837234,0.56470638,85581.0,85580.0,0.0001696]
[1742484837800,0.56370638,85581.0,85580.0,0.0001696]
[1742484837997,0.33101038,85581.0,85580.0,0.11974463]
[1742484838195,0.56470638,85581.0,85580.0,0.11974463]
[1742484838400,0.55602238,85581.0,85580.0,0.11974463]
[1742484838554,0.56770638,85581.0,85580.0,0.12074463]
[1742484838751,0.56470638,85581.0,85580.0,0.12074463]
[1742484838963,0.56770638,85581.0,85580.0,0.11974463]
[1742484839506,0.56470638,85581.0,85580.0,0.12174463]
[1742484840969,0.31932638,85581.0,85580.0,0.12174463]
[1742484841152,0.301,85581.0,85580.0,0.12174463]
[1742484841362,0.3,85581.0,85580.0,0.12174463]
[1742484841658,0.001,85588.0,85580.0,1.62174463]
[1742484841854,0.001,85588.0,85581.0,0.11957503]
[1742484841855,0.012684,85582.0,85581.0,0.11957503]
[1742484842049,0.246378,85582.0,85581.0,0.11957503]
[1742484842224,0.54638,85581.0,85580.0,0.0021696]
[1742484842601,0.54638,85581.0,85580.0,0.0001696]
[1742484842821,2.153703,85581.0,85580.0,0.0001696]
[1742484843006,1.835383,85581.0,85580.0,0.0021696]
[1742484843237,1.047132,85581.0,85580.0,0.0021696]
[1742484843446,0.835427,85581.0,85580.0,0.0021696]
[1742484844279,0.835427,85581.0,85580.0,6e-07]
[1742484844458,0.54638,85581.0,85580.0,6e-07]
[1742484845047,0.545407,85572.0,85571.0,0.0001695]
[1742484845234,0.545407,85572.0,85571.0,0.00058361]
[1742484845441,0.546407,85572.0,85571.0,0.00058361]
[1742484845865,0.56473479,85572.0,85571.0,0.00058361]
[1742484846070,0.31932779,85572.0,85571.0,0.12015864]
[1742484846243,0.31932779,85572.0,85571.0,0.26307864]
[1742484846244,0.233721,85572.0,85571.0,0.26307864]
[1742484846442,0.3,85573.0,85571.0,0.26307864]
[1742484846811,0.3,85573.0,85571.0,0.00158361]
[1742484846812,0.01368606,85572.0,85571.0,0.00158361]
[1742484846980,0.246407,85572.0,85571.0,0.00058361]
[1742484848045,0.2647337,85572.0,85571.0,0.00058361]
[1742484848240,0.2657337,85572.0,85571.0,0.00058361]
[1742484848646,0.9743337,85572.0,85571.0,0.00058361]
[1742484849167,0.9743337,85572.0,85571.0,0.00158361]
[1742484849573,0.9743337,85572.0,85571.0,0.00058361]
[1742484849946,0.9743337,85572.0,85571.0,0.00158361]
[1742484850771,0.956007,85572.0,85571.0,0.00158361]
[1742484851088,1.111442,85572.0,85571.0,0.00158361]
[1742484852058,0.956007,85572.0,85571.0,0.00158361]
[1742484853253,1.691271,85572.0,85571.0,0.00158361]
[1742484853620,1.571825,85572.0,85571.0,0.00158361]
[1742484853782,1.23009226,85572.0,85571.0,0.00158361]
[1742484854875,1.14228726,85572.0,85571.0,0.00158361]
[1742484855718,1.14228726,85572.0,85571.0,6.1e-07]
[1742484855849,0.546435,85562.0,85561.0,3.1e-07]
[1742484856053,0.955035,85562.0,85561.0,3.1e-07]
[1742484856468,0.955035,85562.0,85554.0,0.0001694]
[1742484856469,0.546455,85555.0,85554.0,7.1e-07]
[1742484856666,0.5550352,85555.0,85554.0,7.1e-07]
[1742484856969,0.9636352,85555.0,85554.0,7.1e-07]
[1742484857177,1.0441352,85555.0,85554.0,7.1e-07]
[1742484857381,1.0691352,85555.0,85554.0,7.1e-07]
[1742484857759,1.33067023,85555.0,85554.0,7.1e-07]
[1742484857976,1.33067023,85555.0,85541.0,5.1e-07]
[1742484857977,0.546493,85542.0,85541.0,5.1e-07]
[1742484858192,1.097053,85542.0,85541.0,5.1e-07]
[1742484858619,0.546521,85532.0,85531.0,5.1e-07]
[1742484858837,0.546529,85529.0,85528.0,4.3e-07]
[1742484859035,1.033529,85529.0,85528.0,4.3e-07]
[1742484859248,1.058529,85529.0,85528.0,4.3e-07]
[1742484859454,1.058529,85529.0,85528.0,0.00012518]
[1742484859867,1.033529,85529.0,85528.0,0.00012518]
[1742484860106,1.19382867,85529.0,85528.0,0.00012518]
[1742484860315,1.22136847,85529.0,85528.0,0.00012518]
[1742484860527,1.34983547,85529.0,85528.0,1.8e-07]
[1742484860644,4.75775663,85529.0,85528.0,1.8e-07]
[1742484860842,1.34723911,85529.0,85528.0,1.8e-07]
[1742484861072,1.19737992,85529.0,85528.0,1.8e-07]
[1742484861475,1.31695495,85529.0,85528.0,1.8e-07]
[1742484861699,1.34923911,85529.0,85528.0,1.8e-07]
[1742484861902,0.312692,85522.0,85521.0,5.8e-07]
[1742484862241,0.312692,85522.0,85495.0,0.0128707]
[1742484862242,0.546607,85502.0,85495.0,0.0128707]
[1742484862450,1.231335,85502.0,85495.0,0.0128707]
[1742484862886,0.7096,85502.0,85495.0,0.0128707]
[1742484863128,0.955207,85502.0,85501.0,0.12057503]
[1742484863359,0.721295,85502.0,85501.0,0.12057503]
[1742484863563,0.72141985,85502.0,85501.0,0.12057503]
[1742484864180,0.70972485,85502.0,85501.0,0.12057503]
[1742484864580,0.30012485,85502.0,85501.0,0.20167503]
[1742484864857,0.30012485,85502.0,85501.0,0.20667503]
[1742484865081,0.31281985,85502.0,85501.0,0.12557503]
[1742484865399,0.31281985,85502.0,85501.0,0.006]
[1742484865400,1.04417285,85502.0,85501.0,0.006]
[1742484865548,1.04417285,85502.0,85501.0,0.001]
[1742484865753,0.90705285,85502.0,85501.0,0.002]
[1742484865965,0.90805285,85502.0,85501.0,0.002]
[1742484866375,0.87324085,85502.0,85501.0,0.002]
[1742484866573,0.82793985,85502.0,85501.0,0.002]
[1742484866742,0.72241985,85502.0,85501.0,0.002]
[1742484866942,0.72141985,85502.0,85501.0,0.001]
[1742484867583,2.29291885,85502.0,85501.0,0.001]
[1742484868042,1.51133885,85502.0,85501.0,0.001]
[1742484868246,0.88735585,85502.0,85501.0,0.001]
[1742484868449,0.88735585,85502.0,85501.0,0.006]
[1742484868450,0.88835585,85502.0,85501.0,0.006]
[1742484868655,0.88835585,85502.0,85471.0,1e-06]
[1742484868656,0.012699,85472.0,85471.0,1e-06]
[1742484868854,0.546693,85472.0,85471.0,1e-06]
[1742484869689,0.55958377,85472.0,85471.0,1e-06]
[1742484870132,0.55970855,85472.0,85471.0,1e-06]
[1742484870369,0.31401555,85472.0,85471.0,1e-06]
[1742484870551,0.32571455,85472.0,85471.0,1e-06]
[1742484870726,0.31401555,85472.0,85471.0,1e-06]
[1742484870890,0.55970855,85472.0,85471.0,1e-06]
[1742484871372,0.31401555,85472.0,85471.0,1e-06]
[1742484871576,0.32571455,85472.0,85471.0,0.001001]
[1742484871798,0.31401555,85472.0,85471.0,0.001001]
[1742484872067,0.31301555,85472.0,85471.0,0.12057603]
[1742484872471,0.31301555,85472.0,85471.0,0.11957603]
[1742484872472,0.54800955,85472.0,85471.0,0.11957603]
[1742484872678,0.31401555,85472.0,85471.0,1.61957603]
[1742484873058,0.31301555,85472.0,85471.0,1.61957603]
[1742484873202,0.54700955,85472.0,85471.0,1.61957603]
[1742484873397,0.01301555,85472.0,85471.0,1.61957603]
[1742484873652,0.01401555,85472.0,85471.0,1.61957603]
[1742484874546,0.01501555,85472.0,85471.0,1.61957603]
[1742484875016,0.56070855,85472.0,85471.0,1.500001]
[1742484875276,0.56070855,85472.0,85471.0,1e-06]
[1742484876072,0.57805572,85472.0,85471.0,1e-06]
[1742484876406,0.57805572,85472.0,85471.0,0.005001]
[1742484876789,0.57805572,85472.0,85471.0,1e-06]
[1742484877189,0.56635672,85472.0,85471.0,0.11957603]
[1742484877728,0.33236272,85472.0,85471.0,0.26569603]
[1742484878433,0.33136272,85472.0,85471.0,0.34819603]
[1742484878787,0.33136272,85472.0,85471.0,0.35119603]
[1742484878988,0.56535672,85472.0,85471.0,0.12257603]
[1742484879187,0.33136272,85472.0,85471.0,0.26557603]
[1742484879618,0.03136272,85472.0,85471.0,0.27157603]
[1742484879803,0.26535672,85472.0,85471.0,0.27149603]
[1742484880157,0.03136272,85472.0,85471.0,0.26749603]
[1742484880312,0.27705572,85472.0,85471.0,0.26749603]
[1742484880517,0.57805572,85472.0,85471.0,0.004001]
[1742484880713,0.57805572,85472.0,85471.0,0.149961]
[1742484880914,0.57805572,85472.0,85471.0,0.151961]
[1742484881772,0.57805572,85472.0,85471.0,0.006001]
[1742484882175,0.57805572,85472.0,85471.0,0.002001]
[1742484882398,0.57805572,85472.0,85471.0,0.006001]
[1742484882912,0.001,85467.0,85466.0,0.02369064]
[1742484883082,0.546708,85467.0,85466.0,0.02369064]
[1742484883463,0.546708,85467.0,85466.0,0.14326567]
[1742484884341,0.546708,85467.0,85466.0,0.14426567]
[1742484884736,0.3,85467.0,85466.0,0.14426567]
[1742484885522,0.3,85467.0,85466.0,0.14526567]
[1742484885861,0.31401555,85472.0,85466.0,0.14426567]
[1742484886057,0.534005,85468.0,85467.0,0.11957503]
[1742484886358,0.546705,85468.0,85467.0,0.11957503]
[1742484887097,0.3,85468.0,85467.0,0.11957503]
[1742484887298,0.301,85468.0,85467.0,0.11957503]
[1742484887662,0.01301555,85472.0,85467.0,0.26485503]
[1742484887868,0.01301555,85472.0,85468.0,0.00233982]
[1742484888087,0.01301555,85472.0,85470.0,0.11957503]
[1742484888274,0.01301555,85472.0,85471.0,0.43217203]
[1742484888476,0.01301555,85472.0,85471.0,0.19817503]
[1742484889109,0.01301555,85472.0,85471.0,0.26477503]
[1742484889688,0.01401555,85472.0,85471.0,0.26577503]
[1742484890492,0.01301555,85472.0,85471.0,0.82169503]
[1742484891313,0.01301555,85472.0,85471.0,0.8580969]
[1742484891715,0.01301555,85472.0,85471.0,2.3580969]
[1742484891963,0.01401555,85472.0,85471.0,2.5940939]
[1742484892160,0.01401555,85472.0,85471.0,2.3600969]
[1742484892384,0.0003392,85481.0,85471.0,2.3580969]
[1742484892583,0.0003392,85481.0,85477.0,0.11957503]
[1742484892785,0.0003392,85481.0,85478.0,0.03874118]
[1742484892927,0.0003392,85481.0,85479.0,0.1559769]
[1742484893132,0.0003392,85481.0,85480.0,0.03640187]
[1742484893351,0.0003392,85481.0,85480.0,0.1559769]
[1742484893593,0.0003392,85481.0,85480.0,0.3008569]
[1742484894259,0.0250595,85481.0,85480.0,0.1559769]
[1742484894429,0.2473315,85481.0,85480.0,0.1559769]
[1742484894634,0.0133615,85481.0,85480.0,0.3008569]
[1742484895215,0.0133615,85481.0,85480.0,0.3058569]
[1742484895425,0.2473315,85481.0,85480.0,0.3058569]
[1742484895741,0.2473315,85481.0,85480.0,0.3008569]
[1742484895946,0.2473315,85481.0,85480.0,1.8038569]
[1742484896090,0.2473315,85481.0,85480.0,1.8058569]
[1742484896441,0.2590295,85481.0,85480.0,1.8068569]
[1742484896598,0.2600295,85481.0,85480.0,0.3068569]
[1742484897413,0.2600295,85481.0,85480.0,0.27045503]
[1742484897643,0.2600295,85481.0,85480.0,0.30694088]
[1742484898260,0.0133615,85481.0,85480.0,0.30694088]
[1742484899043,0.2463615,85481.0,85480.0,0.30694088]
[1742484899291,0.2463615,85481.0,85480.0,0.33079774]
[1742484900069,0.2463615,85481.0,85480.0,0.40669774]
[1742484900763,0.2463615,85481.0,85480.0,0.33079774]
[1742484901286,0.2463615,85481.0,85480.0,0.32879774]
[1742484901604,0.2463615,85481.0,85480.0,0.33279774]
[1742484901867,0.2463615,85481.0,85480.0,1.82879774]
[1742484902095,0.18004907,85481.0,85480.0,2.06276974]
[1742484902352,0.0703909,85481.0,85480.0,2.10996974]
[1742484902602,0.01834406,85502.0,85483.0,0.01454085]
[1742484902839,0.0129998,85492.0,85488.0,0.233948]
[1742484903092,0.001,85514.0,85491.0,0.11957503]